bitfinex/quotes_SOLUSD_20250622
["timestamp","ask_amount","ask_price","bid_price","bid_amount"]
[1750575597379,146.9,136.08,136.05,5.8801911]
[1750575597793,146.9,136.08,136.05,16.31657254]
[1750575598794,146.9,136.08,136.05,5.8801911]
[1750575600698,146.9,136.07,136.05,5.8801911]
[1750575600898,157.33638144,136.07,136.05,5.8801911]
[1750575601586,146.9,136.07,136.05,5.8801911]
[1750575601791,146.9,136.07,136.05,16.31657254]
[1750575602503,146.9,136.07,136.04,10.43638144]
[1750575603588,146.9,136.07,136.05,5.8801911]
[1750575607482,157.33638144,136.07,136.05,5.8801911]
[1750575608211,187.15638144,136.07,136.03,20.58369476]
[1750575608505,187.15638144,136.07,136.03,31.0200762]
[1750575609703,10.43638144,136.05,136.03,5.88105564]
[1750575610203,40.23638144,136.05,136.03,5.88105564]
[1750575611903,40.23638144,136.05,136.02,5.88148801]
[1750575612100,10.43638144,136.04,136.02,5.88148801]
[1750575612896,10.43638144,136.03,136.02,5.88148801]
[1750575613794,10.43638144,136.03,136.0,20.58740767]
[1750575613795,157.33638144,136.03,136.0,20.58740767]
[1750575615001,146.9,136.03,136.0,20.58740767]
[1750575615202,146.9,136.03,136.0,31.02378911]
[1750575620531,7.908,135.96,135.91,14.71477103]
[1750575620712,44.108,135.96,135.92,5.88581518]
[1750575621040,163.63638144,135.99,135.94,10.43638144]
[1750575622013,153.2,135.99,135.95,16.3208978]
[1750575622443,153.2,135.99,135.96,10.43638144]
[1750575622638,6.3172,136.0,135.97,10.43638144]
[1750575624536,6.3172,136.0,135.98,5.88321812]
[1750575626010,6.3172,136.0,135.96,10.43638144]
[1750575626210,6.3172,136.0,135.93,18.64964886]
[1750575626521,153.2172,136.0,135.96,10.43638144]
[1750575627420,153.2172,136.0,135.97,5.8836508]
[1750575629435,121.95588622,136.0,135.97,5.8836508]
[1750575634435,132.39226766,136.0,135.97,5.8836508]
[1750575634918,10.43638144,135.98,135.96,5.8839782]
[1750575635118,10.43638144,135.97,135.96,5.8839782]
[1750575636236,151.85588622,135.99,135.96,5.8839782]
[1750575636237,121.95588622,135.99,135.96,5.8839782]
[1750575636423,121.95588622,135.99,135.96,16.32035964]
[1750575637631,121.95588622,135.99,135.96,31.03056852]
[1750575637829,121.95588622,135.99,135.96,20.59418708]
[1750575638325,132.39226766,135.99,135.96,20.59418708]
[1750575638530,10.43638144,135.98,135.96,5.8839782]
[1750575639531,10.43638144,135.98,135.95,5.88451636]
[1750575640241,10.43638144,135.96,135.92,5.88581518]
[1750575640442,24.71034886,135.92,135.87,5.88798115]
[1750575640648,10.43638144,135.88,135.85,5.88884799]
[1750575640949,10.43638144,135.86,135.82,5.89014872]
[1750575641247,10.43638144,135.85,135.82,5.89014872]
[1750575641427,151.91588622,135.87,135.82,5.89014872]
[1750575641642,10.43638144,135.85,135.82,5.89014872]
[1750575642150,151.91588622,135.87,135.82,5.89014872]
[1750575642319,10.43638144,135.83,135.79,5.89145003]
[1750575642519,140.60553508,135.86,135.79,5.89145003]
[1750575642520,10.43638144,135.82,135.79,5.89145003]
[1750575642826,10.43638144,135.81,135.79,5.89145003]
[1750575643550,10.43638144,135.81,135.78,5.89188392]
[1750575644743,29.98,135.83,135.78,5.89188392]
[1750575645044,10.43638144,135.84,135.79,10.43638144]
[1750575645551,10.43638144,135.84,135.8,5.8910162]
[1750575646437,121.95588622,135.83,135.8,5.8910162]
[1750575646638,121.95588622,135.83,135.8,16.32739764]
[1750575646834,121.95588622,135.83,135.82,10.43638144]
[1750575647755,121.95588622,135.83,135.82,16.32653016]
[1750575650449,128.35588622,135.88,135.82,60.5026456]
[1750575650822,128.35588622,135.88,135.84,10.43638144]
[1750575651335,138.79226766,135.88,135.84,10.43638144]
[1750575651542,138.79226766,135.88,135.85,5.88884799]
[1750575654560,138.79226766,135.88,135.85,20.61096797]
[1750575655255,128.35588622,135.88,135.85,20.61096797]
[1750575655450,128.35588622,135.88,135.86,10.43638144]
[1750575655757,121.95588622,135.88,135.86,10.43638144]
[1750575656064,121.95588622,135.88,135.87,10.43638144]
[1750575656246,121.95588622,135.87,135.85,14.72211998]
[1750575656951,132.39226766,135.87,135.83,16.32609652]
[1750575658536,121.95588622,135.87,135.83,16.32609652]
[1750575658742,121.95588622,135.87,135.83,31.05038423]
[1750575661676,10.43638144,135.86,135.83,5.88971508]
[1750575661964,10.43638144,135.84,135.83,5.88971508]
[1750575663545,10.43638144,135.84,135.81,5.89058243]
[1750575666062,10.43638144,135.84,135.8,14.72670724]
[1750575666360,121.95588622,135.83,135.78,5.89188392]
[1750575666564,132.39226766,135.83,135.78,5.89188392]
[1750575666760,132.39226766,135.83,135.78,16.32826536]
[1750575667065,10.43638144,135.81,135.78,5.89188392]
[1750575667843,10.43638144,135.8,135.78,5.89188392]
[1750575668044,10.43638144,135.79,135.78,5.89188392]
[1750575668244,10.43638144,135.79,135.75,14.73209699]
[1750575668556,10.43638144,135.78,135.75,14.73209699]
[1750575669369,10.43638144,135.78,135.75,20.62528299]
[1750575670467,10.43638144,135.79,135.75,20.62528299]
[1750575670675,10.43638144,135.79,135.75,31.06166443]
[1750575671776,40.51638144,135.8,135.75,25.16847843]
[1750575671952,10.43638144,135.79,135.75,25.16847843]
[1750575672463,30.08,135.8,135.75,25.16847843]
[1750575672652,40.51638144,135.8,135.75,25.16847843]
[1750575673471,6.4,135.81,135.77,10.43638144]
[1750575673872,6.4,135.81,135.78,5.89188392]
[1750575674576,132.39226766,135.8,135.78,5.89188392]
[1750575674877,10.43638144,135.79,135.75,5.893186]
[1750575675081,10.43638144,135.76,135.75,5.893186]
[1750575675757,10.43638144,135.76,135.72,5.89448865]
[1750575675955,10.43638144,135.75,135.72,20.63071028]
[1750575676271,10.43638144,135.76,135.72,20.63071028]
[1750575678680,123.48098622,135.78,135.72,60.53953498]
[1750575678877,121.95588622,135.78,135.75,10.43638144]
[1750575679178,121.95588622,135.78,135.74,10.43638144]
[1750575679960,121.95588622,135.78,135.75,10.43638144]
[1750575681080,121.95588622,135.78,135.76,5.89275191]
[1750575682082,121.95588622,135.78,135.77,10.43638144]
[1750575682274,16.14755941,135.83,135.77,10.43638144]
[1750575682578,16.14755941,135.83,135.81,10.43638144]
[1750575682762,16.14755941,135.83,135.8,10.43638144]
[1750575682957,16.14755941,135.83,135.81,5.89058243]
[1750575683569,16.14755941,135.83,135.81,16.32696387]
[1750575684070,16.14755941,135.83,135.82,10.43638144]
[1750575684277,9.68755941,135.83,135.82,10.43638144]
[1750575685276,9.68755941,135.83,135.82,16.32653016]
[1750575685687,121.95588622,135.86,135.82,31.05190197]
[1750575685892,46.99638144,135.88,135.84,10.43638144]
[1750575686062,16.89638144,135.88,135.84,10.43638144]
[1750575687377,16.89638144,135.88,135.85,5.88884799]
[1750575688086,6.46,135.88,135.85,16.32522943]
[1750575688966,10.43638144,135.88,135.85,5.88884799]
[1750575689167,10.43638144,135.86,135.82,5.89014872]
[1750575689408,10.43638144,135.84,135.81,20.61622217]
[1750575690684,10.43638144,135.86,135.82,10.43638144]
[1750575691177,56.1,135.87,135.82,10.43638144]
[1750575691487,66.53638144,135.87,135.82,10.43638144]
[1750575691683,66.53638144,135.87,135.83,16.32609652]
[1750575691875,66.53638144,135.87,135.83,5.88971508]
[1750575692278,10.43638144,135.86,135.83,5.88971508]
[1750575693693,121.95588622,135.85,135.83,5.88971508]
[1750575694485,121.95588622,135.84,135.78,20.62109407]
[1750575694683,10.43638144,135.82,135.78,20.62109407]
[1750575694998,10.43638144,135.81,135.78,20.62109407]
[1750575695166,10.43638144,135.8,135.78,5.89188392]
[1750575695587,10.43638144,135.8,135.77,5.89231789]
[1750575698693,10.43638144,135.8,135.76,5.89275191]
[1750575698892,121.95588622,135.79,135.76,5.89275191]
[1750575699090,121.95588622,135.79,135.72,56.99934326]
[1750575699091,10.43638144,135.77,135.73,5.89405437]
[1750575699275,132.39226766,135.76,135.73,5.89405437]
[1750575699480,121.95588622,135.76,135.73,5.89405437]
[1750575699794,132.39226766,135.76,135.73,5.89405437]
[1750575701695,121.95588622,135.76,135.74,10.43638144]
[1750575702594,121.95588622,135.76,135.75,10.43638144]
[1750575703590,121.95588622,135.76,135.75,16.32956744]
[1750575704587,128.41588622,135.79,135.75,31.06253244]
[1750575704790,128.41588622,135.79,135.77,10.43638144]
[1750575705284,128.41588622,135.79,135.78,10.43638144]
[1750575706298,128.41588622,135.79,135.77,10.43638144]
[1750575706694,121.95588622,135.79,135.78,10.43638144]
[1750575707398,121.95588622,135.79,135.78,16.32826536]
[1750575709600,121.95588622,135.79,135.78,10.43638144]
[1750575711203,121.95588622,135.79,135.78,16.32826536]
[1750575711391,147.95588622,135.82,135.78,31.05797518]
[1750575711702,147.95588622,135.82,135.79,10.43638144]
[1750575713080,121.95588622,135.82,135.8,5.8910162]
[1750575713405,121.95588622,135.82,135.8,16.32739764]
[1750575713921,121.95588622,135.82,135.81,10.43638144]
[1750575715187,121.95588622,135.82,135.81,16.32696387]
[1750575718702,6.46,135.84,135.81,16.32696387]
[1750575718899,6.46,135.84,135.83,10.43638144]
[1750575719101,121.95588622,135.85,135.83,10.43638144]
[1750575719303,121.95588622,135.85,135.84,10.43638144]
[1750575719818,121.95588622,135.85,135.81,20.6170385]
[1750575719984,121.95588622,135.85,135.83,10.43638144]
[1750575721017,121.95588622,135.85,135.84,16.32566294]
[1750575728212,121.95588622,135.85,135.84,5.8892815]
[1750575728413,121.95588622,135.85,135.84,16.32566294]
[1750575729812,121.95588622,135.85,135.84,5.8892815]
[1750575730200,151.95588622,135.85,135.82,5.89014872]
[1750575730406,151.95588622,135.85,135.82,16.32653016]
[1750575730601,121.95588622,135.85,135.82,16.32653016]
[1750575730804,121.95588622,135.85,135.84,10.43638144]
[1750575731115,121.95588622,135.88,135.84,10.43638144]
[1750575731291,121.95588622,135.88,135.87,10.43638144]
[1750575731720,121.95588622,135.88,135.87,16.32436259]
[1750575737099,11.00439567,135.9,135.87,31.04431548]
[1750575737299,11.00439567,135.9,135.89,10.43638144]
[1750575738403,11.00439567,135.9,135.89,16.32349601]
[1750575741835,121.95588622,135.92,135.89,31.04128245]
[1750575742134,121.95588622,135.92,135.91,10.43638144]
[1750575743114,121.95588622,135.92,135.91,16.32262969]
[1750575744840,121.95588622,135.92,135.91,5.88624825]
[1750575745339,121.95588622,135.92,135.9,5.88668138]
[1750575746944,121.95588622,135.92,135.9,10.43638144]
[1750575748617,121.95588622,135.92,135.91,5.88624825]
[1750575749138,121.95588622,135.92,135.91,16.32262969]
[1750575749538,121.95588622,135.92,135.91,5.88624825]
[1750575752244,121.95588622,135.92,135.9,5.88668138]
[1750575753325,121.95588622,135.92,135.89,14.71778644]
[1750575754031,132.39226766,135.91,135.87,16.32436259]
[1750575754633,121.95588622,135.91,135.87,16.32436259]
[1750575755246,121.95588622,135.91,135.89,5.88711457]
[1750575756246,121.95588622,135.91,135.89,16.32349601]
[1750575770551,121.95588622,135.91,135.9,10.43638144]
[1750575772447,121.95588622,135.91,135.9,16.32306282]
[1750575773056,121.95588622,135.91,135.9,5.88668138]
[1750575774347,121.95588622,135.91,135.88,5.88754783]
[1750575774552,132.39226766,135.91,135.88,5.88754783]
[1750575775166,162.31226766,135.9,135.86,5.88841454]
[1750575775458,121.95588622,135.89,135.86,5.88841454]
[1750575775658,132.39226766,135.89,135.86,5.88841454]
[1750575775859,121.95588622,135.88,135.86,5.88841454]
[1750575776066,162.31226766,135.88,135.85,5.8887273]
[1750575776237,10.43638144,135.86,135.85,5.8887273]
[1750575776436,10.43638144,135.86,135.83,5.88971508]
[1750575776844,40.35638144,135.86,135.83,5.88971508]
[1750575777655,10.43638144,135.85,135.83,5.88971508]
[1750575778255,10.43638144,135.85,135.82,5.89014872]
[1750575778455,40.35638144,135.86,135.82,5.89014872]
[1750575779748,40.35638144,135.86,135.82,16.32653016]
[1750575780070,170.49406766,135.87,135.82,16.32653016]
[1750575781769,121.95588622,135.87,135.84,10.43638144]
[1750575782675,121.95588622,135.87,135.85,10.43638144]
[1750575782860,121.95588622,135.87,135.86,10.43638144]
[1750575783873,121.95588622,135.87,135.86,5.88841454]
[1750575784042,121.95588622,135.87,135.86,16.32479598]
[1750575786996,121.95588622,135.87,135.86,5.88841454]
[1750575787375,121.95588622,135.87,135.86,16.32479598]
[1750575788873,121.95588622,135.87,135.86,5.88841454]
[1750575789780,121.95588622,135.87,135.86,16.32479598]
[1750575793077,121.95588622,135.87,135.86,5.88841454]
[1750575793880,121.95588622,135.87,135.84,25.15942026]
[1750575793881,121.95588622,135.87,135.85,5.88884799]
[1750575795560,121.95588622,135.87,135.83,10.43638144]
[1750575797578,121.95588622,135.87,135.84,5.8892815]
[1750575798261,121.95588622,135.87,135.84,16.32566294]
[1750575800787,121.95588622,135.87,135.84,5.8892815]
[1750575802994,121.95588622,135.87,135.84,31.0488667]
[1750575803487,121.95588622,135.87,135.85,10.43638144]
[1750575804294,121.95588622,135.87,135.86,5.88841454]
[1750575807172,132.39226766,135.87,135.82,10.43638144]
[1750575807372,132.39226766,135.86,135.83,5.88971508]
[1750575807581,121.95588622,135.85,135.83,5.88971508]
[1750575808302,121.95588622,135.85,135.82,5.89014872]
[1750575808804,121.95588622,135.85,135.83,10.43638144]
[1750575810100,121.95588622,135.85,135.82,31.05190197]
[1750575810695,121.95588622,135.85,135.82,20.61552053]
[1750575811085,10.43638144,135.84,135.82,5.89014872]
[1750575811285,10.43638144,135.84,135.8,5.8910162]
[1750575811286,133.99756766,135.83,135.8,5.8910162]
[1750575811896,10.43638144,135.82,135.8,5.8910162]
[1750575812200,121.95588622,135.81,135.8,5.8910162]
[1750575812401,121.95588622,135.81,135.78,5.89188392]
[1750575812817,132.39226766,135.8,135.78,5.89188392]
[1750575813791,132.39226766,135.8,135.77,5.89231789]
[1750575814194,10.43638144,135.79,135.77,5.89231789]
[1750575814586,162.33226766,135.8,135.77,5.89231789]
[1750575815500,121.95588622,135.8,135.77,5.89231789]
[1750575817804,10.43638144,135.79,135.74,10.43638144]
[1750575818002,121.95588622,135.78,135.75,10.43638144]
[1750575818306,121.95588622,135.78,135.76,10.43638144]
[1750575819721,121.95588622,135.78,135.77,5.89231789]
[1750575820796,121.95588622,135.78,135.77,16.32869933]
[1750575823832,121.95588622,135.82,135.77,31.05949405]
[1750575824112,121.95588622,135.82,135.79,10.43638144]
[1750575824699,121.95588622,135.82,135.81,10.43638144]
[1750575825508,121.95588622,135.82,135.78,18.64964886]
[1750575825699,121.95588622,135.86,135.81,10.43638144]
[1750575825913,121.95588622,135.86,135.83,10.43638144]
[1750575826099,132.39226766,135.86,135.82,10.43638144]
[1750575826430,121.95588622,135.86,135.85,10.43638144]
[1750575826925,121.95588622,135.86,135.84,10.43638144]
[1750575827421,121.95588622,135.86,135.85,16.32522943]
[1750575838717,10.43638144,135.91,135.85,31.04734941]
[1750575838718,121.95588622,135.89,135.85,31.04734941]
[1750575838917,121.95588622,135.89,135.87,10.43638144]
[1750575839549,121.95588622,135.89,135.88,5.88754783]
[1750575840914,121.95588622,135.89,135.88,16.32392927]
[1750575847237,121.95588622,135.89,135.88,5.88754783]
[1750575848614,121.95588622,135.89,135.88,16.32392927]
[1750575849646,121.95588622,135.94,135.88,60.48053804]
[1750575849942,121.95588622,135.96,135.93,10.43638144]
[1750575850939,121.95588622,135.96,135.94,5.88494924]
[1750575851338,132.39226766,135.96,135.94,5.88494924]
[1750575851528,162.31226766,135.96,135.94,5.88494924]
[1750575852041,151.87588622,135.96,135.94,5.88494924]
[1750575852224,151.87588622,135.96,135.93,5.88538218]
[1750575852431,121.95588622,135.96,135.93,5.88538218]
[1750575853347,121.95588622,135.95,135.93,5.88538218]
[1750575855216,121.95588622,135.95,135.94,10.43638144]
[1750575855944,6.36,135.97,135.94,10.43638144]
[1750575856148,6.36,135.97,135.95,10.43638144]
[1750575856729,121.95588622,135.99,135.96,10.43638144]
[1750575856945,6.36,136.02,135.98,10.43638144]
[1750575856946,158.21588622,136.02,135.98,10.43638144]
[1750575857242,128.31588622,136.02,135.99,5.88278549]
[1750575857431,128.31588622,136.02,135.99,16.31916693]
[1750575857631,128.31588622,136.02,135.99,31.02613067]
[1750575858340,128.31588622,136.02,136.0,10.43638144]
[1750575858851,121.95588622,136.02,136.0,10.43638144]
[1750575859337,121.95588622,136.02,136.01,5.88192044]
[1750575859722,6.5792,136.05,136.01,31.02310299]
[1750575859920,133.97746766,136.06,136.02,10.43638144]
[1750575860119,159.97746766,136.06,136.02,10.43638144]
[1750575860317,121.95588622,136.06,136.04,10.43638144]
[1750575860625,121.95588622,136.06,136.03,10.43638144]
[1750575861351,121.95588622,136.06,136.04,5.88062334]
[1750575862249,121.95588622,136.06,136.04,16.31700478]
[1750575862423,121.95588622,136.06,136.05,10.43638144]
[1750575863125,121.95588622,136.06,136.04,16.31700478]
[1750575864337,121.95588622,136.06,136.04,5.88062334]
[1750575864536,121.95588622,136.05,136.04,5.88062334]
[1750575865451,121.95588622,136.05,136.03,5.88105564]
[1750575868029,121.95588622,136.05,136.03,16.31743708]
[1750575868830,121.95588622,136.05,136.03,5.88105564]
[1750575869769,121.95588622,136.05,135.99,5.88278549]
[1750575869770,10.43638144,136.04,135.99,5.88278549]
[1750575869966,10.43638144,136.04,135.99,16.31916693]
[1750575869967,132.39226766,136.04,135.99,16.31916693]
[1750575870131,132.39226766,136.03,135.99,16.31916693]
[1750575872553,132.39226766,136.02,135.98,25.14371015]
[1750575872852,121.95588622,136.01,135.98,25.14371015]
[1750575873535,121.95588622,136.01,135.98,31.02692827]
[1750575876358,121.95588622,136.01,135.98,25.14371015]
[1750575877045,121.95588622,136.0,135.98,25.14371015]
[1750575877242,121.95588622,136.0,135.98,14.70732871]
[1750575878431,121.95588622,136.0,135.98,20.59054683]
[1750575878955,121.95588622,136.0,135.98,5.88321812]
[1750575879157,132.39226766,136.0,135.98,5.88321812]
[1750575880032,132.39226766,136.0,135.96,31.03067387]
[1750575880237,121.95588622,136.0,135.96,31.03067387]
[1750575880751,121.95588622,136.0,135.97,10.43638144]
[1750575881047,121.95588622,136.0,135.96,20.59429243]
[1750575881048,121.95588622,136.0,135.98,10.43638144]
[1750575882366,121.95588622,136.0,135.99,5.88278549]
[1750575887462,121.95588622,136.0,135.98,16.31959956]
[1750575887768,121.95588622,136.0,135.99,10.43638144]
[1750575889450,121.95588622,136.0,135.99,16.31916693]
[1750575897868,121.95588622,136.03,135.99,31.02613067]
[1750575898076,121.95588622,136.03,136.01,10.43638144]
[1750575899648,121.95588622,136.03,136.02,5.88148801]
[1750575901778,121.95588622,136.03,136.01,5.88192044]
[1750575901955,121.95588622,136.03,136.01,16.31830188]
[1750575902352,121.95588622,136.03,136.02,10.43638144]
[1750575902681,121.95588622,136.06,136.02,10.43638144]
[1750575902861,121.95588622,136.06,136.03,10.43638144]
[1750575903876,121.95588622,136.06,136.04,5.88062334]
[1750575904457,121.95588622,136.06,136.02,5.88148801]
[1750575904651,10.43638144,136.03,136.0,5.88235294]
[1750575904850,10.43638144,136.02,136.0,5.88235294]
[1750575905071,121.95588622,136.01,136.0,5.88235294]
[1750575905262,132.39226766,136.01,135.98,5.88321812]
[1750575905467,31.4728,136.02,135.98,5.88321812]
[1750575905468,132.39226766,136.0,135.98,5.88321812]
[1750575905878,132.39226766,136.0,135.98,26.0]
[1750575906580,10.43638144,135.99,135.97,5.8836508]
[1750575907479,10.43638144,135.98,135.96,5.88397036]
[1750575907779,40.33638144,135.98,135.96,5.88397036]
[1750575908276,40.33638144,135.98,135.94,5.88494924]
[1750575908482,40.33638144,135.98,135.94,16.32133068]
[1750575909889,40.33638144,135.98,135.94,5.88494924]
[1750575910181,10.43638144,135.97,135.94,5.88494924]
[1750575910383,10.43638144,135.95,135.92,5.88539149]
[1750575914962,10.43638144,135.93,135.9,5.88668138]
[1750575915283,29.9,135.94,135.9,5.88668138]
[1750575915284,40.33638144,135.94,135.9,5.88668138]
[1750575915674,121.95588622,135.93,135.9,16.32306282]
[1750575916187,121.95588622,135.93,135.91,10.43638144]
[1750575917573,121.95588622,135.93,135.9,31.03976627]
[1750575917766,121.95588622,135.93,135.9,5.88668138]
[1750575918477,121.95588622,135.93,135.9,16.32306282]
[1750575920488,121.95588622,135.93,135.91,10.43638144]
[1750575920981,121.95588622,135.93,135.92,10.43638144]
[1750575921489,121.95588622,135.96,135.92,10.43638144]
[1750575921664,121.95588622,135.96,135.94,10.43638144]
[1750575922588,121.95588622,135.96,135.95,5.88451636]
[1750575924278,121.95588622,135.96,135.95,16.3208978]
[1750575924481,121.95588622,135.96,135.95,5.88451636]
[1750575926485,121.95588622,135.96,135.93,5.88538218]
[1750575927179,121.95588622,135.95,135.93,5.88538218]
[1750575929870,121.95588622,135.95,135.93,16.32176362]
[1750575930198,121.95588622,135.95,135.94,10.43638144]
[1750575931787,121.95588622,135.98,135.94,10.43638144]
[1750575932093,121.95588622,135.98,135.96,10.43638144]
[1750575932398,6.3831,136.0,135.95,20.59580727]
[1750575932399,6.36,136.01,135.97,10.43638144]
[1750575932612,6.36,136.01,135.95,20.59580727]
[1750575932789,16.79638144,136.01,135.96,10.43638144]
[1750575933888,16.79638144,136.01,135.97,5.8836508]
[1750575935309,16.79638144,136.01,135.97,16.32003224]
[1750575935491,16.79638144,136.01,135.97,31.02915925]
[1750575935974,6.36,136.01,135.97,31.02915925]
[1750575936271,6.36,136.01,135.98,10.43638144]
[1750575936685,6.36,136.01,135.99,5.88278549]
[1750575939497,6.36,136.01,135.98,5.88321812]
[1750575942098,121.95588622,136.0,135.98,5.88321812]
[1750575945005,132.39226766,135.99,135.97,5.88357808]
[1750575946099,132.39226766,135.99,135.95,5.88451636]
[1750575946998,121.95588622,135.99,135.95,16.3208978]
[1750575947907,121.95588622,135.99,135.95,31.03218871]
[1750575948890,121.95588622,135.99,135.96,10.43638144]
[1750575949907,121.95588622,135.99,135.97,5.8836508]
[1750575950896,121.95588622,135.98,135.96,5.88408355]
[1750575955530,132.39226766,135.97,135.92,16.32219662]
[1750575955690,162.29226766,135.96,135.92,5.88581518]
[1750575955894,10.43638144,135.95,135.92,5.88581518]
[1750575956900,162.29226766,135.96,135.92,16.32219662]
[1750575957105,132.39226766,135.96,135.92,16.32219662]
[1750575957307,121.95588622,135.96,135.92,31.03673458]
[1750575957615,121.95588622,135.96,135.93,10.43638144]
[1750575958723,121.95588622,135.96,135.94,5.88494924]
[1750575959698,132.39226766,135.96,135.94,5.88494924]
[1750575960319,162.29226766,135.96,135.94,5.88494924]
[1750575960522,132.39226766,135.95,135.91,10.43638144]
[1750575960939,132.39226766,135.95,135.92,5.88581518]
[1750575961434,10.43638144,135.94,135.92,5.88581518]
[1750575961598,10.43638144,135.93,135.89,146.96677678]
[1750575962206,40.33638144,135.94,135.89,136.53039534]
[1750575962395,40.33638144,135.94,135.89,146.96677678]
[1750575962600,40.33638144,135.94,135.9,5.88668138]
[1750575962829,194.63226766,135.95,135.91,10.43638144]
[1750575963128,154.29588622,135.95,135.91,10.43638144]
[1750575965034,164.73226766,135.95,135.92,5.88581518]
[1750575968733,121.95588622,135.94,135.92,5.88581518]
[1750575976510,10.43638144,135.93,135.9,5.88668138]
[1750575980151,132.39226766,135.94,135.9,5.88668138]
[1750575980529,121.95588622,135.93,135.9,5.88668138]
[1750575981951,121.95588622,135.93,135.91,10.43638144]
[1750575982184,121.95588622,135.93,135.92,10.43638144]
[1750575984054,121.95588622,135.93,135.92,16.32219662]
[1750575986459,121.95588622,135.97,135.92,31.03673458]
[1750575986637,132.39226766,135.97,135.93,10.43638144]
[1750575988435,132.39226766,135.97,135.94,5.88494924]
[1750575990868,10.43638144,135.95,135.92,5.88581518]
[1750575991045,18.64964886,135.95,135.92,5.88581518]
[1750575991355,10.43638144,135.94,135.92,5.88581518]
[1750575991660,18.64964886,135.95,135.92,5.88581518]
[1750575991661,29.0860303,135.95,135.92,5.88581518]
[1750575992864,29.0860303,135.95,135.91,10.43638144]
[1750575993249,29.0860303,135.95,135.9,5.88668138]
[1750575993462,29.0860303,135.95,135.91,10.43638144]
[1750575993875,29.0860303,135.95,135.92,5.88581518]
[1750575994379,10.43638144,135.94,135.91,5.88612471]
[1750575994765,121.95588622,135.93,135.91,5.88612471]
[1750575995276,121.95588622,135.92,135.91,5.88612471]
[1750575995580,121.95588622,135.92,135.9,5.88668138]
[1750575995773,132.39226766,135.92,135.9,5.88668138]
[1750575995979,132.39226766,135.92,135.89,127.70049136]
[1750575996161,162.29226766,135.92,135.89,127.70049136]
[1750575996364,10.43638144,135.9,135.89,121.81350959]
[1750575996764,40.33638144,135.9,135.89,121.81350959]
[1750575997285,40.33638144,135.9,135.88,5.88748152]
[1750575997585,121.95588622,135.89,135.86,5.88841454]
[1750575998280,121.95588622,135.89,135.86,16.32479598]
[1750575999561,121.95588622,135.89,135.86,31.04583234]
[1750575999762,121.95588622,135.89,135.87,10.43638144]
[1750576000868,121.95588622,135.89,135.88,5.88754783]
[1750576001585,121.95588622,135.88,135.84,5.8892815]
[1750576001776,132.39226766,135.87,135.84,5.8892815]
[1750576001960,162.29226766,135.87,135.84,5.8892815]
[1750576002483,132.39226766,135.86,135.84,5.8892815]
[1750576002785,132.39226766,135.86,135.8,14.72673083]
[1750576002786,162.29226766,135.85,135.82,5.89014872]
[1750576002961,132.39226766,135.84,135.81,5.89058243]
[1750576005193,132.39226766,135.84,135.8,14.72673083]
[1750576005382,10.43638144,135.83,135.79,10.43638144]
[1750576005581,132.39226766,135.84,135.79,10.43638144]
[1750576005782,121.95588622,135.83,135.79,10.43638144]
[1750576005966,121.95588622,135.83,135.8,10.43638144]
[1750576006488,121.95588622,135.83,135.79,10.43638144]
[1750576006674,121.95588622,135.83,135.8,5.8910162]
[1750576010091,121.95588622,135.82,135.8,5.8910162]
[1750576010294,121.95588622,135.82,135.79,10.43638144]
[1750576012285,121.95588622,135.82,135.8,5.8910162]
[1750576014087,121.95588622,135.82,135.79,10.43638144]
[1750576015296,121.95588622,135.82,135.8,5.8910162]
[1750576017882,121.95588622,135.82,135.78,20.62159374]
[1750576018180,121.95588622,135.82,135.79,10.43638144]
[1750576019086,121.95588622,135.82,135.78,20.62159374]
[1750576019087,132.39226766,135.82,135.78,20.62159374]
[1750576019729,121.95588622,135.81,135.78,20.62159374]
[1750576019895,121.95588622,135.8,135.78,31.05797518]
[1750576020083,121.95588622,135.8,135.79,10.43638144]
[1750576020799,121.95588622,135.8,135.78,31.05797518]
[1750576022398,121.95588622,135.8,135.79,10.43638144]
[1750576022585,121.95588622,135.84,135.79,10.43638144]
[1750576022787,121.95588622,135.84,135.81,10.43638144]
[1750576023807,121.95588622,135.84,135.82,5.89014872]
[1750576024382,10.43638144,135.83,135.82,5.89014872]
[1750576025808,10.43638144,135.83,135.79,5.89145003]
[1750576026001,157.33638144,135.82,135.79,5.89145003]
[1750576026300,146.9,135.81,135.79,5.89145003]
[1750576027499,157.33638144,135.81,135.79,5.89145003]
[1750576028010,146.9,135.81,135.78,20.62095702]
[1750576030398,157.33638144,135.81,135.78,20.62095702]
[1750576030593,157.33638144,135.81,135.78,5.89188392]
[1750576030790,146.9,135.8,135.78,5.89188392]
[1750576032013,146.9,135.79,135.78,5.89188392]
[1750576036795,41.88158144,135.8,135.78,5.89188392]
[1750576037115,11.96158144,135.8,135.78,5.89188392]
[1750576037497,6.36,135.82,135.78,5.89188392]
[1750576037811,6.36,135.82,135.78,31.05797518]
[1750576038115,6.36,135.82,135.79,10.43638144]
[1750576039095,16.79638144,135.82,135.78,20.62159374]
[1750576039412,16.79638144,135.82,135.78,31.05797518]
[1750576042417,16.79638144,135.82,135.79,26.0]